bitfinex/quotes_SOLUSD_20260213
["timestamp","ask_amount","ask_price","bid_price","bid_amount"]
[1771006734126,1.25376371,84.644,84.61,10.36062985]
[1771006734431,1.25376371,84.639,84.61,10.36062985]
[1771006735430,1.25376371,84.629,84.596,41.37311456]
[1771006735619,1.25376371,84.629,84.61,10.36062985]
[1771006736926,1.25376371,84.629,84.597,0.11960459]
[1771006736927,1.25376371,84.629,84.592,11.8214]
[1771006737227,11.81502398,84.638,84.586,11.82226943]
[1771006737228,1.25376371,84.619,84.586,11.82226943]
[1771006737441,1.25376371,84.619,84.58,10.36062985]
[1771006737615,1.25376371,84.619,84.573,29.56023264]
[1771006737616,1.25376371,84.609,84.581,11.82286282]
[1771006738004,1.25376371,84.622,84.59,10.36062985]
[1771006738420,1.25376371,84.621,84.59,10.36062985]
[1771006738632,41.36040272,84.622,84.581,11.82286282]
[1771006738633,1.25376371,84.619,84.581,11.82286282]
[1771006738823,1.25376371,84.619,84.57,29.56128955]
[1771006738824,1.25376371,84.609,84.571,11.82438424]
[1771006739021,10.36062985,84.59,84.566,11.82499681]
[1771006739217,1.25376371,84.589,84.566,11.82499681]
[1771006740326,1.25376371,84.589,84.56,10.36062985]
[1771006740327,10.36062985,84.58,84.55,0.1]
[1771006740514,1.25376371,84.579,84.55,0.1]
[1771006742834,1.1857828,84.577,84.55,0.1]
[1771006744114,1.1857828,84.581,84.55,10.46062985]
[1771006744329,1.1857828,84.579,84.55,0.1]
[1771006744538,1.1857828,84.569,84.55,0.1]
[1771006744724,1.1857828,84.567,84.55,0.1]
[1771006744915,1.1857828,84.567,84.537,11.82907317]
[1771006744916,1.1357828,84.559,84.53,0.2]
[1771006745122,1.12156965,84.549,84.53,0.2]
[1771006746640,1.12156965,84.568,84.532,0.30721769]
[1771006746848,1.12156965,84.567,84.54,10.36062985]
[1771006747047,1.12156965,84.549,84.53,0.2]
[1771006749126,1.12156965,84.549,84.531,11.82997953]
[1771006750845,1.12156965,84.549,84.53,0.2]
[1771006751920,1.12156965,84.559,84.521,0.50317927]
[1771006752127,1.12156965,84.558,84.521,0.50317927]
[1771006753255,11.82634199,84.557,84.531,11.82997953]
[1771006753454,1.12156965,84.556,84.527,11.83050222]
[1771006753628,11.82634199,84.557,84.518,11.83171054]
[1771006753629,1.12156965,84.549,84.518,11.83171054]
[1771006753827,1.12156965,84.539,84.51,0.2]
[1771006754040,1.12156965,84.539,84.514,12.09154064]
[1771006754657,41.39219697,84.557,84.514,0.2592664]
[1771006754658,1.12156965,84.529,84.514,0.2592664]
[1771006755631,1.12156965,84.528,84.514,0.2592664]
[1771006755844,1.12156965,84.528,84.501,11.83406833]
[1771006756050,1.12156965,84.528,84.491,11.83558012]
[1771006756232,1.12156965,84.519,84.491,11.83558012]
[1771006757243,1.12156965,84.519,84.492,0.9594935]
[1771006757549,4.61729252,84.552,84.501,0.9594935]
[1771006757550,1.12156965,84.538,84.501,0.9594935]
[1771006758149,1.12156965,84.538,84.491,41.42453042]
[1771006758150,10.36062985,84.53,84.493,0.9594935]
[1771006758350,1.12156965,84.529,84.493,0.9594935]
[1771006760044,10.36062985,84.53,84.493,0.9594935]
[1771006760045,1.12156965,84.527,84.494,11.83515989]
[1771006760545,10.36062985,84.52,84.494,11.83515989]
[1771006760745,1.12156965,84.519,84.494,11.83515989]
[1771006761427,1.12156965,84.519,84.49,0.2]
[1771006761627,10.36062985,84.52,84.49,0.2]
[1771006761628,1.12156965,84.509,84.49,0.2]
[1771006762474,1.12156965,84.499,84.49,0.2]
[1771006763153,1.12156965,84.499,84.452,1.15833312]
[1771006763464,1.12156965,84.499,84.471,1.15826635]
[1771006763634,59.15792966,84.52,84.451,41.44415104]
[1771006763635,1.12156965,84.518,84.491,1.15826635]
[1771006764030,11.83193913,84.517,84.491,1.15826635]
[1771006764442,1.12156965,84.516,84.491,1.15826635]
[1771006764836,49.7,84.527,84.474,46.1]
[1771006764837,1.12156965,84.525,84.493,1.15818468]
[1771006765940,1.12156965,84.525,84.492,11.83544004]
[1771006765941,1.12156965,84.533,84.501,1.15810553]
[1771006767753,1.12156965,84.529,84.49,10.36062985]
[1771006767956,1.12156965,84.519,84.482,11.83684098]
[1771006768457,4.61729252,84.53,84.476,1.15787224]
[1771006768664,4.61729252,84.53,84.45,0.2]
[1771006768665,1.12156965,84.499,84.46,10.36062985]
[1771006768962,4.61729252,84.53,84.45,1.35787224]
[1771006768963,1.12156965,84.469,84.45,0.2]
[1771006769259,1.12156965,84.459,84.426,11.84466238]
[1771006769448,49.72,84.468,84.416,1.15878615]
[1771006769449,10.36062985,84.45,84.416,1.15878615]
[1771006769650,10.36062985,84.45,84.391,46.06]
[1771006769651,1.12156965,84.439,84.397,1.15878615]
[1771006769852,1.12156965,84.439,84.401,1.15878615]
[1771006770039,1.12156965,84.447,84.411,1.15878615]
[1771006770235,1.12156965,84.447,84.41,10.36062985]
[1771006770758,11.84089449,84.454,84.42,11.51477889]
[1771006770935,1.16858429,84.456,84.421,1.15414904]
[1771006770936,11.84062518,84.455,84.421,1.15414904]
[1771006771262,1.16858429,84.449,84.409,1.15414904]
[1771006771552,41.44218814,84.455,84.394,41.47214256]
[1771006771553,1.16858429,84.437,84.401,11.84820085]
[1771006771754,1.16858429,84.437,84.4,10.36062985]
[1771006771755,1.16858429,84.419,84.384,13.00473682]
[1771006771948,49.72,84.436,84.384,13.00473682]
[1771006771949,1.16858429,84.428,84.4,10.36062985]
[1771006772153,29.60405074,84.448,84.411,1.15414904]
[1771006772154,11.84202735,84.445,84.411,1.15414904]
[1771006772353,29.60041392,84.459,84.389,46.04]
[1771006772354,1.16858429,84.464,84.43,10.36062985]
[1771006772542,5.36086188,84.511,84.421,1.15414904]
[1771006772543,1.16858429,84.459,84.421,1.15414904]
[1771006773260,1.16858429,84.459,84.43,11.51477889]
[1771006773563,41.42649164,84.487,84.441,11.84258831]
[1771006773564,1.16858429,84.469,84.441,11.84258831]
[1771006774037,11.83880286,84.468,84.44,11.51477889]
[1771006774243,1.16858429,84.478,84.45,10.36062985]
[1771006774454,1.16858429,84.499,84.461,1.15414904]
[1771006774659,1.16858429,84.499,84.46,10.36062985]
[1771006775056,1.16858429,84.489,84.452,1.15414904]
[1771006775257,1.16858429,84.489,84.45,10.36062985]
[1771006775460,1.16858429,84.479,84.442,1.15414904]
[1771006775659,1.16858429,84.477,84.443,11.84230782]
[1771006775965,1.16858429,84.477,84.45,10.36062985]
[1771006776265,1.16858429,84.477,84.42,10.36062985]
[1771006776266,1.16858429,84.459,84.421,1.15414904]
[1771006776473,1.16858429,84.459,84.43,10.36062985]
[1771006776765,1.16858429,84.439,84.39,10.36062985]
[1771006776972,1.16858429,84.429,84.391,1.15414904]
[1771006777168,1.1248988,84.449,84.42,10.36062985]
[1771006778171,1.1248988,84.449,84.421,11.84539391]
[1771006778368,49.76,84.466,84.43,11.59155664]
[1771006778565,50.8848988,84.466,84.43,11.59155664]
[1771006778746,62.72409252,84.466,84.44,10.36062985]
[1771006778948,49.76,84.466,84.44,10.36062985]
[1771006779349,11.83906524,84.467,84.44,10.36062985]
[1771006779667,1.1248988,84.471,84.43,1.23092679]
[1771006779869,10.36062985,84.47,84.44,10.36062985]
[1771006780046,1.1248988,84.469,84.43,11.59155664]
[1771006780248,1.1248988,84.449,84.42,10.36062985]
[1771006780449,11.83880286,84.468,84.421,1.23092679]
[1771006780650,1.1248988,84.467,84.44,10.36062985]
[1771006780962,12.96125811,84.486,84.451,1.23092679]
[1771006781149,1.1248988,84.486,84.45,10.36062985]
[1771006781354,1.1248988,84.479,84.45,10.36062985]
[1771006781777,1.1248988,84.479,84.44,10.36062985]
[1771006781980,1.1248988,84.479,84.441,1.23092679]
[1771006782785,11.83657402,84.484,84.451,1.23092679]
[1771006783074,29.58777256,84.495,84.442,41.44856824]
[1771006783075,12.95961047,84.498,84.47,10.36062985]
[1771006783274,1.1248988,84.497,84.461,1.23092679]
[1771006783576,1.1248988,84.497,84.47,10.36062985]
[1771006783866,1.1248988,84.497,84.444,1.23092679]
[1771006784072,1.1248988,84.497,84.46,10.36062985]
[1771006784452,1.1248988,84.495,84.46,10.36062985]
[1771006784984,1.1248988,84.493,84.46,10.36062985]
[1771006785174,1.1248988,84.493,84.461,11.83978404]
[1771006785353,11.83515989,84.494,84.451,11.84118601]
[1771006785354,1.1248988,84.489,84.451,11.84118601]
[1771006785665,61.65515989,84.494,84.461,1.23092679]
[1771006785850,61.65515989,84.494,84.47,10.36062985]
[1771006786260,11.83515989,84.494,84.47,10.36062985]
[1771006786973,1.1248988,84.499,84.471,11.8383824]
[1771006787371,4.61729252,84.522,84.471,11.8383824]
[1771006787372,1.1248988,84.521,84.49,10.36062985]
[1771006787555,1.1248988,84.519,84.48,10.36062985]
[1771006787868,1.1248988,84.509,84.48,10.36062985]
[1771006788268,1.1248988,84.509,84.461,29.59938511]
[1771006788269,1.1248988,84.509,84.47,10.36062985]
[1771006788476,1.1248988,84.509,84.451,29.60281224]
[1771006788477,1.1248988,84.499,84.46,10.36062985]
[1771006788664,1.1248988,84.497,84.462,11.83962775]
[1771006788973,49.82,84.498,84.471,1.23092679]
[1771006789177,11.83361931,84.505,84.48,10.36062985]
[1771006789757,12.95851811,84.505,84.48,10.36062985]
[1771006790577,1.1248988,84.518,84.48,10.36062985]
[1771006790872,1.1248988,84.518,84.481,1.23092679]
[1771006791076,11.83193913,84.517,84.49,10.36062985]
[1771006791273,1.1248988,84.516,84.49,10.36062985]
[1771006792076,1.1248988,84.516,84.482,11.83684098]
[1771006792451,11.83221913,84.515,84.49,10.36062985]
[1771006792656,11.83166635,84.519,84.49,10.36062985]
[1771006792969,1.1248988,84.518,84.49,10.36062985]
[1771006793774,1.1248988,84.518,84.468,1.23092679]
[1771006793975,1.1248988,84.509,84.48,10.36062985]
[1771006794274,11.83166635,84.519,84.49,10.36062985]
[1771006794467,11.83109032,84.524,84.5,10.36062985]
[1771006794965,11.83109032,84.524,84.5,10.38662895]
[1771006795155,11.83109032,84.524,84.492,1.23092679]
[1771006795357,1.1248988,84.528,84.5,10.38662895]
[1771006796375,1.1248988,84.528,84.492,1.23092679]
[1771006797566,11.83031537,84.529,84.49,10.38662895]
[1771006797567,1.1248988,84.519,84.49,10.38662895]
[1771006798085,1.1248988,84.519,84.467,29.59734811]
[1771006798289,1.1248988,84.519,84.48,10.38662895]
[1771006798668,1.1248988,84.519,84.49,10.38662895]
[1771006799386,1.1248988,84.517,84.48,22.22368627]
[1771006800787,1.17891891,84.509,84.472,1.23092679]
[1771006801006,41.41227696,84.516,84.462,1.12980625]
[1771006801007,1.17891891,84.499,84.462,1.12980625]
[1771006801300,1.17891891,84.497,84.462,1.12980625]
[1771006801590,41.41227696,84.516,84.471,1.12980625]
[1771006801591,1.17891891,84.509,84.471,1.12980625]
[1771006801764,11.83207913,84.516,84.49,11.5164352]
[1771006801969,1.17891891,84.523,84.49,11.5164352]
[1771006801970,1.17891891,84.523,84.5,10.38662895]
[1771006802165,11.8312392,84.522,84.5,10.38662895]
[1771006802471,1.17891891,84.523,84.5,10.38662895]
[1771006802675,1.17891891,84.523,84.46,61.9]
[1771006802676,1.17891891,84.545,84.51,10.38662895]
[1771006802873,29.56969413,84.547,84.467,4.61729252]
[1771006802874,1.17891891,84.539,84.502,1.12980625]
[1771006803088,1.17891891,84.529,84.5,10.38662895]
[1771006803272,1.17891891,84.529,84.5,22.22087361]
[1771006803470,1.17891891,84.529,84.493,1.12980625]
[1771006803673,1.17891891,84.519,84.48,10.38662895]
[1771006803888,1.17891891,84.517,84.49,10.38662895]
[1771006804088,1.17891891,84.517,84.481,1.12980625]
[1771006804089,49.96,84.523,84.501,1.12980625]
[1771006804387,1.17891891,84.529,84.5,10.38662895]
[1771006804600,1.17891891,84.529,84.5,11.5164352]
[1771006805101,1.17891891,84.529,84.5,23.35065612]
[1771006805290,29.57040121,84.544,84.5,23.35065612]
[1771006805291,11.82945856,84.535,84.511,1.12980625]
[1771006805798,1.17891891,84.534,84.5,10.38662895]
[1771006806093,1.17891891,84.534,84.501,11.83417947]
[1771006806972,1.17891891,84.534,84.5,10.38662895]
[1771006807192,41.40300797,84.535,84.501,11.83417947]
[1771006807193,11.82969964,84.533,84.501,11.83417947]
[1771006807399,1.17891891,84.532,84.501,11.83417947]
[1771006808277,1.17891891,84.532,84.5,10.38662895]
[1771006808483,1.17891891,84.529,84.494,11.83502531]
[1771006809185,1.17891891,84.529,84.49,11.8356961]
[1771006809382,1.17891891,84.527,84.49,22.22232505]
[1771006810481,1.17891891,84.527,84.487,1.12980625]
[1771006810684,1.17891891,84.519,84.482,11.83673687]
[1771006811079,1.17891891,84.519,84.491,1.12980625]
[1771006811283,10.38662895,84.53,84.493,1.12980625]
[1771006811284,13.00959822,84.526,84.493,1.12980625]
[1771006811503,1.17891891,84.525,84.493,1.12980625]
[1771006813601,1.17891891,84.523,84.494,11.83515989]
[1771006815082,11.8312392,84.522,84.495,1.12980625]
[1771006815391,1.17891891,84.523,84.495,1.12980625]
[1771006815392,13.01010773,84.523,84.495,1.12980625]
[1771006816707,10.38662895,84.53,84.49,10.38662895]
[1771006816708,10.38662895,84.53,84.497,1.12980625]
[1771006816883,10.38662895,84.53,84.496,11.83487975]
[1771006816884,11.82992584,84.532,84.51,10.38662895]
[1771006817089,1.17891891,84.529,84.496,11.83487975]
[1771006818901,1.17891891,84.527,84.491,11.83558012]
[1771006820206,1.17891891,84.527,84.491,12.96538637]
[1771006820907,1.17891891,84.525,84.493,11.83529996]
[1771006821406,1.17891891,84.539,84.511,1.12980625]
[1771006821609,13.00777896,84.539,84.511,1.12980625]
[1771006822106,33.44659817,84.55,84.511,1.12980625]
[1771006822107,1.17891891,84.547,84.511,1.12980625]
[1771006822909,11.82788068,84.546,84.513,1.12980625]
[1771006823103,1.17891891,84.545,84.513,1.12980625]
[1771006823702,1.17891891,84.545,84.52,10.38226272]
[1771006823906,1.17891891,84.545,84.513,1.12980625]
[1771006825499,1.17891891,84.543,84.515,1.12980625]
[1771006828204,1.17891891,84.541,84.515,1.12980625]
[1771006828504,1.17891891,84.541,84.52,10.38226272]
[1771006828708,1.17891891,84.548,84.52,11.51206897]
[1771006829009,1.17891891,84.548,84.521,1.12980625]
[1771006829200,1.17891891,84.546,84.521,1.12980625]
[1771006829899,1.17891891,84.554,84.521,1.12980625]
[1771006830198,1.17891891,84.554,84.53,10.38226272]
[1771006830622,1.17891891,84.561,84.54,10.38226272]
[1771006832623,1.17891891,84.561,84.538,1.12980625]
[1771006832624,1.12893627,84.579,84.551,1.12522408]
[1771006832805,1.12893627,84.579,84.56,10.38226272]
[1771006833203,12.95122364,84.586,84.56,10.38226272]
[1771006833719,12.95122364,84.586,84.561,1.12522408]
[1771006833923,11.82156223,84.592,84.57,10.38226272]
[1771006834305,1.12893627,84.601,84.58,4.01e-06]
[1771006835003,10.58226272,84.62,84.58,4.01e-06]
[1771006835004,1.12893627,84.616,84.58,1.12522408]
[1771006835210,1.12893627,84.616,84.59,10.38226272]
[1771006836016,11.8179562,84.617,84.55,11.5074868]
[1771006836017,1.12893627,84.599,84.55,11.5074868]
[1771006836325,1.12893627,84.589,84.55,11.5074868]
[1771006836702,41.37702746,84.588,84.55,11.5074868]
[1771006836908,41.37702746,84.588,84.54,11.5074868]
[1771006836909,1.12893627,84.579,84.54,11.5074868]
[1771006837115,1.12893627,84.569,84.538,11.82899997]
[1771006839538,1.14771408,84.567,84.532,11.82983958]
[1771006840124,1.14771408,84.567,84.541,1.18913915]
[1771006840429,1.14771408,84.583,84.551,1.18913915]
[1771006840726,1.14771408,84.589,84.561,1.18913915]
[1771006840917,1.14771408,84.589,84.56,10.38226272]
[1771006841230,1.14771408,84.589,84.561,1.18913915]
[1771006842327,1.14771408,84.587,84.557,11.82621332]
[1771006842629,1.14771408,84.579,84.553,11.82685226]
[1771006843929,1.14771408,84.579,84.554,1.18913915]
[1771006844131,1.14771408,84.588,84.561,1.18913915]
[1771006845732,1.14771408,84.607,84.571,1.18913915]
[1771006846113,1.14771408,84.607,84.562,41.38974952]
[1771006846114,1.14771408,84.607,84.58,11.57140187]
[1771006846513,11.81854428,84.613,84.581,1.18913915]
[1771006847212,1.14771408,84.612,84.581,1.18913915]
[1771006848617,1.14771408,84.61,84.581,1.18913915]
[1771006848827,1.14771408,84.609,84.576,57.82359267]
[1771006849033,1.14771408,84.609,84.577,1.18913915]
[1771006849237,1.14771408,84.609,84.58,10.38226272]
[1771006850428,1.14771408,84.609,84.581,1.18913915]
[1771006850733,1.14771408,84.609,84.542,61.9]
[1771006850734,1.14771408,84.639,84.601,1.18913915]
[1771006851638,11.81538707,84.636,84.601,1.18913915]
[1771006851831,11.81538707,84.636,84.602,11.82005153]
[1771006852135,11.81538707,84.636,84.603,1.18913915]
[1771006852339,0.2,84.64,84.611,1.18913915]
[1771006852558,50.08,84.66,84.602,11.82005153]
[1771006852559,1.14771408,84.67,84.631,1.18913915]
[1771006852737,1.14771408,84.67,84.641,1.18913915]
[1771006852923,1.14771408,84.67,84.632,1.18913915]
[1771006852924,1.14771408,84.669,84.632,1.18913915]
[1771006853120,1.14771408,84.659,84.623,45.98]
[1771006853328,1.14771408,84.649,84.612,45.98]
[1771006853843,1.14771408,84.639,84.602,11.82005153]
[1771006854026,50.06,84.657,84.61,10.38226272]
[1771006854027,1.14771408,84.637,84.61,10.38226272]
[1771006854631,1.14771408,84.637,84.611,1.18913915]
[1771006855835,1.14771408,84.646,84.62,10.38226272]
[1771006856038,1.14771408,84.655,84.621,1.18913915]
[1771006857734,1.14771408,84.649,84.61,10.35494141]
[1771006858039,1.14771408,84.649,84.606,11.8194045]
[1771006858040,1.14771408,84.647,84.621,1.18913915]
[1771006858219,1.14771408,84.658,84.621,1.18913915]
[1771006858543,1.14771408,84.658,84.63,10.35494141]
[1771006858726,1.14771408,84.658,84.621,1.18913915]
[1771006859326,1.14771408,84.649,84.612,1.18913915]
[1771006860122,1.14771408,84.657,84.621,1.18913915]
[1771006860340,1.14771408,84.657,84.631,1.18913915]
[1771006860539,1.14771408,84.665,84.631,1.18913915]
[1771006861544,1.14771408,84.665,84.63,10.35494141]
[1771006861545,1.22734825,84.659,84.62,10.35494141]
[1771006861729,1.22734825,84.649,84.615,1.16061281]
[1771006861930,1.22734825,84.649,84.614,45.96]
[1771006862135,1.22734825,84.637,84.601,12.98080406]
[1771006862441,1.22734825,84.637,84.602,1.16061281]
[1771006862956,1.22734825,84.664,84.62,10.35494141]
[1771006863244,1.22734825,84.664,84.593,11.82128828]
[1771006863245,1.22734825,84.659,84.61,10.35494141]
[1771006863831,1.22734825,84.659,84.61,11.51555422]
[1771006864347,1.22734825,84.657,84.621,1.16061281]
[1771006864544,1.22734825,84.657,84.62,10.35494141]
[1771006864545,1.22734825,84.665,84.631,1.16061281]
[1771006864926,1.22734825,84.659,84.62,1.16061281]
[1771006865351,1.22734825,84.659,84.621,1.16061281]
[1771006865747,1.22734825,84.649,84.618,1.16061281]
[1771006865932,1.22734825,84.649,84.62,10.35494141]
[1771006866551,1.22734825,84.649,84.608,29.54779317]
[1771006866552,1.22734825,84.647,84.61,10.35494141]
[1771006867046,1.22734825,84.647,84.61,51.7211307]
[1771006867238,1.22734825,84.647,84.611,1.16061281]
[1771006868652,10.35494141,84.66,84.621,1.16061281]
[1771006868856,1.22734825,84.658,84.621,1.16061281]
[1771006871454,1.22734825,84.656,84.622,11.81725792]
[1771006872562,1.22734825,84.656,84.597,45.98]
[1771006872563,1.22734825,84.649,84.61,11.51555422]
[1771006873337,1.22734825,84.649,84.611,11.81879424]
[1771006874335,10.35494141,84.65,84.611,12.97940705]
[1771006874336,1.22734825,84.647,84.611,12.97940705]
[1771006874537,1.22734825,84.647,84.612,1.16061281]
[1771006874737,1.22734825,84.652,84.621,1.16061281]
[1771006875245,1.22734825,84.649,84.611,11.81879424]
[1771006875550,10.35494141,84.64,84.611,11.81879424]
[1771006875851,1.22734825,84.639,84.611,11.81879424]
[1771006877940,11.58228966,84.65,84.612,1.16061281]
[1771006878140,1.22734825,84.649,84.612,1.16061281]
[1771006879036,1.22734825,84.649,84.609,29.54749343]
[1771006879037,11.58228966,84.66,84.621,1.16061281]
[1771006879239,11.81209322,84.659,84.621,1.16061281]
[1771006879434,1.22734825,84.658,84.621,1.16061281]
[1771006879660,1.22734825,84.658,84.63,10.35494141]
[1771006880367,60.41494141,84.67,84.63,10.35494141]
[1771006880368,1.22734825,84.666,84.631,1.16061281]
[1771006880940,1.22734825,84.666,84.615,46.0]
[1771006880941,1.22734825,84.673,84.642,11.81446563]
[1771006881140,11.81027966,84.672,84.642,11.81446563]
[1771006881348,1.22734825,84.671,84.642,11.81446563]
[1771006881656,1.22734825,84.669,84.642,11.81446563]
[1771006883260,1.22734825,84.667,84.635,12.97605559]
[1771006883477,1.22734825,84.667,84.636,1.16061281]
[1771006884157,11.8102628,84.673,84.641,1.16061281]
[1771006884345,13.03761105,84.673,84.641,1.16061281]
[1771006884546,1.22734825,84.672,84.641,1.16061281]
[1771006887067,1.22734825,84.67,84.642,12.97507844]
[1771006888970,1.22734825,84.67,84.643,1.16061281]
[1771006889162,1.22734825,84.668,84.643,1.16061281]
[1771006889364,1.22734825,84.668,84.644,11.81418647]
[1771006893545,1.17361147,84.649,84.612,1.21554515]
[1771006894958,1.17361147,84.647,84.613,11.81851488]
[1771006895258,1.17361147,84.647,84.614,1.21554515]
[1771006895460,1.17361147,84.647,84.609,11.81906413]
[1771006895774,1.17361147,84.629,84.604,11.81976233]
[1771006895963,1.17361147,84.629,84.6,11.82033096]
[1771006897559,1.16244061,84.628,84.594,1.2087479]
[1771006898174,1.16244061,84.627,84.594,1.2087479]
[1771006899683,50.16,84.644,84.596,1.2087479]
[1771006899684,1.16244061,84.631,84.596,1.2087479]
[1771006900381,1.16244061,84.629,84.596,1.2087479]
[1771006901560,1.16244061,84.629,84.598,1.2087479]
[1771006902056,3.8650464,84.64,84.601,1.2087479]
[1771006902269,1.16244061,84.649,84.611,1.2087479]
[1771006902576,103.5,84.694,84.597,41.3726255]
[1771006902577,11.81069813,84.669,84.64,5.0737943]
[1771006902760,1.16244061,84.668,84.633,1.2087479]
[1771006903481,1.16244061,84.668,84.634,13.02433029]
[1771006903662,1.16244061,84.668,84.635,1.2087479]
[1771006904666,1.16244061,84.668,84.641,1.2087479]
[1771006905185,1.16244061,84.668,84.635,1.2087479]
[1771006905762,1.16244061,84.668,84.641,1.2087479]
[1771006907081,1.16244061,84.666,84.636,11.81530318]
[1771006907273,1.16244061,84.666,84.64,3.8650464]
[1771006907888,1.16244061,84.666,84.641,11.81460521]
[1771006908591,1.16244061,84.666,84.64,3.8650464]
[1771006909084,1.16244061,84.665,84.64,3.8650464]
[1771006909293,1.16244061,84.665,84.641,11.81460521]
[1771006909794,1.16244061,84.664,84.633,11.81570715]
[1771006910194,0.2,84.68,84.641,1.2087479]
[1771006910195,1.16244061,84.679,84.641,1.2087479]
[1771006911074,11.80977494,84.676,84.641,1.2087479]
[1771006911278,1.16244061,84.675,84.651,1.2087479]
[1771006911592,1.16244061,84.697,84.661,1.2087479]
[1771006911785,1.16244061,84.697,84.68,3.8650464]
[1771006912098,1.16244061,84.707,84.682,1.2087479]
[1771006912274,1.16244061,84.715,84.69,3.8650464]
[1771006912470,4.0650464,84.73,84.681,41.33158559]
[1771006912471,0.2,84.73,84.711,1.2087479]
[1771006913304,1.16244061,84.746,84.721,1.2087479]
[1771006913907,1.16244061,84.746,84.722,11.80330964]
[1771006914076,1.16244061,84.746,84.713,1.2087479]
[1771006914276,1.16244061,84.746,84.72,5.0737943]
[1771006914973,1.16244061,84.746,84.72,3.8650464]
[1771006915491,1.16244061,84.739,84.71,3.8650464]
[1771006915689,0.2,84.74,84.73,3.8650464]
[1771006916494,0.1,84.75,84.73,3.8650464]
[1771006916495,0.1,84.75,84.73,15.66723664]
[1771006916701,0.1,84.75,84.74,3.8650464]
[1771006917087,0.1,84.75,84.73,5.0737943]
[1771006917695,0.1,84.75,84.731,11.80205591]
[1771006918193,0.1,84.75,84.74,3.8650464]
[1771006918777,0.1,84.76,84.74,3.8650464]
[1771006918978,1.26244061,84.76,84.74,3.85504966]
[1771006919578,0.1,84.76,84.74,3.85504966]
[1771006920177,1.26244061,84.76,84.74,3.85504966]
[1771006920696,3.95504966,84.76,84.71,30.68748939]
[1771006920888,1.20845995,84.758,84.717,1.17525237]
[1771006921485,1.20845995,84.758,84.721,1.17525237]
[1771006922388,1.20845995,84.756,84.722,11.80330964]
[1771006923611,1.20845995,84.756,84.73,10.3306489]
[1771006924103,1.20845995,84.756,84.722,11.80330964]
[1771006924104,0.1,84.76,84.74,10.3306489]
[1771006924297,0.1,84.76,84.722,41.31158376]
[1771006924298,0.1,84.76,84.73,10.3306489]
[1771006924500,0.1,84.76,84.731,11.80205591]
[1771006925123,0.1,84.76,84.732,1.17525237]
[1771006925319,0.1,84.76,84.74,10.3306489]
[1771006925616,0.1,84.76,84.741,1.17525237]
[1771006925810,0.1,84.76,84.74,10.3306489]
[1771006925988,1.20845995,84.759,84.73,10.3306489]
[1771006926181,1.20845995,84.759,84.724,46.04]
[1771006926381,1.20845995,84.759,84.721,11.80335624]
[1771006926600,1.20845995,84.757,84.721,11.80335624]
[1771006926910,1.20845995,84.757,84.73,10.3306489]
[1771006927112,1.20845995,84.757,84.721,12.97860861]
[1771006927495,1.20845995,84.757,84.722,1.17525237]
[1771006927815,0.1,84.76,84.74,10.3306489]
[1771006928206,0.1,84.76,84.74,11.50590127]
[1771006928392,1.20845995,84.758,84.722,1.17525237]
[1771006928601,1.20845995,84.758,84.73,10.3306489]
[1771006929797,1.20845995,84.756,84.73,10.3306489]
[1771006930010,1.20845995,84.756,84.73,22.1327289]
[1771006930503,1.20845995,84.756,84.722,1.17525237]
[1771006930504,1.20845995,84.756,84.722,12.97844199]
[1771006930711,0.1,84.76,84.74,10.3306489]
[1771006931009,0.1,84.76,84.722,41.31146374]
[1771006931010,1.20845995,84.758,84.722,42.48671611]
[1771006931310,1.20845995,84.758,84.722,11.80318962]
[1771006931919,1.30845995,84.76,84.731,1.17525237]
[1771006932120,1.20845995,84.758,84.73,10.3306489]
[1771006932819,0.1,84.76,84.731,1.17525237]
[1771006933018,1.30845995,84.76,84.731,1.17525237]
[1771006933798,1.20845995,84.758,84.731,1.17525237]
[1771006933998,1.20845995,84.758,84.732,11.80191663]
[1771006934713,11.79815712,84.759,84.73,10.3306489]
[1771006934714,1.20845995,84.756,84.73,10.3306489]
[1771006934894,1.20845995,84.756,84.731,11.80205591]
[1771006935216,1.20845995,84.756,84.72,10.3306489]
[1771006935912,1.20845995,84.754,84.721,11.80344896]
[1771006936219,1.20845995,84.754,84.72,11.50590127]
[1771006936512,1.20845995,84.754,84.721,11.80344896]
[1771006936712,1.20845995,84.749,84.721,11.80344896]
[1771006938699,1.20845995,84.748,84.721,11.80344896]
[1771006939292,1.20845995,84.748,84.71,1.17525237]
[1771006939293,1.20845995,84.739,84.71,10.3306489]
[1771006940398,1.20845995,84.739,84.706,1.17525237]
[1771006940599,1.20845995,84.739,84.711,1.17525237]
[1771006940800,1.20845995,84.737,84.713,1.17525237]
[1771006941098,1.20845995,84.749,84.713,1.17525237]
[1771006942400,1.20845995,84.749,84.7,29.51582086]
[1771006942401,1.20845995,84.746,84.684,1.17525237]
[1771006942717,1.20845995,84.729,84.691,1.17525237]
[1771006943608,11.80002586,84.746,84.69,10.3306489]
[1771006943609,1.20845995,84.719,84.69,10.3306489]
[1771006943811,1.20845995,84.719,84.684,1.17525237]